bitfinex-derivatives/quotes_BTCF0:USTF0_20250901
["timestamp","ask_amount","ask_price","bid_price","bid_amount"]
[1756711235398,0.85476,108350.0,108340.0,0.63538424]
[1756711235593,0.85476,108350.0,108340.0,0.3608]
[1756711235794,0.85476,108350.0,108340.0,0.63538424]
[1756711236193,0.85576,108350.0,108340.0,0.63538424]
[1756711238692,0.8558,108350.0,108340.0,0.65575607]
[1756711241095,0.8558,108350.0,108340.0,0.38117183]
[1756711241292,0.8558,108350.0,108340.0,0.65575607]
[1756711242404,0.8558,108350.0,108340.0,0.38117183]
[1756711243502,0.8558,108350.0,108340.0,0.65575607]
[1756711246606,0.8558,108350.0,108340.0,0.38117183]
[1756711246802,0.001,108350.0,108340.0,0.65575607]
[1756711247002,0.001,108350.0,108340.0,0.90575607]
[1756711247205,0.001,108350.0,108340.0,0.99805427]
[1756711247406,0.001,108350.0,108340.0,1.11981059]
[1756711249200,0.001,108350.0,108340.0,2.03927017]
[1756711249608,0.001,108350.0,108340.0,2.05927017]
[1756711250006,0.001,108350.0,108340.0,2.34927017]
[1756711251205,0.001,108350.0,108340.0,2.28305059]
[1756711251407,1.50661755,108380.0,108350.0,0.0922879]
[1756711251602,1.23203331,108380.0,108360.0,0.63538424]
[1756711251906,1.50661755,108380.0,108360.0,0.63538424]
[1756711252303,1.50661755,108380.0,108370.0,0.27458424]
[1756711252304,0.01851331,108380.0,108370.0,0.27458424]
[1756711252700,0.002,108380.0,108370.0,0.27458424]
[1756711252905,0.002,108380.0,108360.0,0.63538424]
[1756711253100,0.002,108380.0,108370.0,0.27458424]
[1756711253298,0.002,108380.0,108360.0,0.63538424]
[1756711254500,0.002,108380.0,108360.0,0.66830424]
[1756711255099,0.8542,108380.0,108370.0,0.27458424]
[1756711255504,0.8542,108380.0,108360.0,0.66830424]
[1756711255911,0.8542,108380.0,108370.0,0.27458424]
[1756711256114,0.8522,108380.0,108370.0,0.27458424]
[1756711256413,0.002,108380.0,108370.0,0.27458424]
[1756711256615,0.854,108380.0,108370.0,0.27458424]
[1756711257309,0.002,108380.0,108370.0,0.27458424]
[1756711257610,0.85388,108380.0,108370.0,0.63538424]
[1756711259109,0.85388,108380.0,108370.0,0.64462989]
[1756711259411,0.85356,108380.0,108370.0,0.64462989]
[1756711259806,0.002,108380.0,108370.0,0.64462989]
[1756711260114,0.85352,108380.0,108370.0,0.64462989]
[1756711260311,0.85352,108380.0,108370.0,0.37004565]
[1756711261316,0.85352,108380.0,108370.0,0.64462989]
[1756711261704,0.002,108380.0,108370.0,0.64462989]
[1756711261903,0.8536,108380.0,108370.0,0.64462989]
[1756711262414,0.002,108380.0,108370.0,0.64462989]
[1756711262615,0.002,108380.0,108370.0,0.73690259]
[1756711262809,0.002,108380.0,108370.0,0.64462989]
[1756711266220,0.15848,108400.0,108370.0,1.05690189]
[1756711266520,0.8516,108400.0,108390.0,0.27458424]
[1756711266909,0.8516,108400.0,108380.0,0.63538424]
[1756711267109,1.12606424,108400.0,108380.0,0.63538424]
[1756711268412,0.85328,108400.0,108380.0,0.71034259]
[1756711268612,0.85328,108400.0,108380.0,0.43575835]
[1756711268916,1.12786424,108400.0,108380.0,0.71034259]
[1756711270112,0.37960573,108410.0,108380.0,0.71034259]
[1756711270113,0.65418997,108410.0,108380.0,0.71034259]
[1756711270320,0.67450078,108410.0,108380.0,0.71034259]
[1756711270510,0.39991654,108410.0,108380.0,0.71034259]
[1756711270716,0.85112,108400.0,108380.0,0.43575835]
[1756711270916,1.12570424,108400.0,108380.0,0.71034259]
[1756711271521,0.85116,108400.0,108390.0,0.27458424]
[1756711272023,0.85116,108400.0,108380.0,0.71034259]
[1756711272224,0.85116,108400.0,108390.0,0.27458424]
[1756711272817,0.85116,108400.0,108380.0,0.71034259]
[1756711273017,0.65418997,108410.0,108380.0,0.79034259]
[1756711273213,0.85124,108400.0,108380.0,0.79034259]
[1756711273418,0.85124,108400.0,108390.0,0.27458424]
[1756711274427,0.65418997,108410.0,108390.0,0.27458424]
[1756711274627,0.29338997,108410.0,108390.0,0.63538424]
[1756711274834,0.85128,108400.0,108390.0,0.63538424]
[1756711275123,0.3608,108420.0,108390.0,0.98996848]
[1756711275317,3.16284,108430.0,108410.0,0.63538424]
[1756711275522,3.18315041,108430.0,108410.0,0.63538424]
[1756711276228,2.31064,108430.0,108410.0,0.63538424]
[1756711276429,3.43742424,108430.0,108410.0,0.63538424]
[1756711276823,3.07662424,108430.0,108410.0,0.63538424]
[1756711277425,2.80204,108430.0,108410.0,0.63538424]
[1756711277728,2.80204,108430.0,108420.0,0.3608]
[1756711278623,3.43742424,108430.0,108410.0,0.3608]
[1756711278830,3.43742424,108430.0,108410.0,0.63538424]
[1756711279031,3.43742424,108430.0,108410.0,0.3608]
[1756711279330,3.16284,108430.0,108410.0,0.63538424]
[1756711279531,2.80204,108430.0,108410.0,0.63538424]
[1756711279929,2.80204,108430.0,108410.0,0.3608]
[1756711280132,2.80204,108430.0,108410.0,0.63538424]
[1756711280330,3.07662424,108430.0,108410.0,0.3608]
[1756711280523,3.43742424,108430.0,108410.0,0.3608]
[1756711281431,0.27458424,108420.0,108410.0,0.3608]
[1756711281623,3.43742424,108430.0,108410.0,0.3608]
[1756711282026,0.85256,108420.0,108410.0,0.63538424]
[1756711282224,0.85256,108420.0,108410.0,0.3608]
[1756711282426,0.85256,108420.0,108410.0,0.63538424]
[1756711282827,0.85256,108420.0,108410.0,0.3608]
[1756711283225,1.37714424,108420.0,108410.0,0.3608]
[1756711283429,1.37714424,108420.0,108400.0,0.38101114]
[1756711283634,1.12714424,108420.0,108400.0,0.38101114]
[1756711283933,1.48794424,108420.0,108400.0,0.38101114]
[1756711284236,1.21336,108420.0,108400.0,0.38101114]
[1756711284436,1.48794424,108420.0,108400.0,0.38101114]
[1756711284638,1.48794424,108420.0,108400.0,0.65559538]
[1756711284830,1.21336,108420.0,108400.0,0.65559538]
[1756711285027,1.48794424,108420.0,108400.0,0.65559538]
[1756711285430,1.48794424,108420.0,108400.0,0.38101114]
[1756711285630,1.48794424,108420.0,108400.0,0.65559538]
[1756711288339,1.48794424,108420.0,108400.0,0.38101114]
[1756711292445,0.27458424,108410.0,108390.0,0.63538424]
[1756711292741,0.63538424,108420.0,108400.0,0.63538424]
[1756711292940,0.65570056,108420.0,108400.0,0.63538424]
[1756711293139,0.38111632,108420.0,108400.0,0.63538424]
[1756711293342,0.85148,108410.0,108400.0,0.3608]
[1756711294341,2.58522424,108430.0,108400.0,0.3608]
[1756711294541,0.85164,108420.0,108400.0,0.63538424]
[1756711295142,2.58522424,108430.0,108410.0,0.63538424]
[1756711295340,0.85144,108420.0,108410.0,0.63538424]
[1756711295736,2.58522424,108430.0,108410.0,0.63538424]
[1756711295938,2.31064,108430.0,108410.0,0.63538424]
[1756711296244,0.85128,108420.0,108410.0,0.63538424]
[1756711296842,0.85128,108420.0,108410.0,0.3608]
[1756711297038,0.85128,108420.0,108410.0,0.63538424]
[1756711298244,0.85128,108420.0,108410.0,0.3608]
[1756711298944,0.85128,108420.0,108410.0,0.39375]
[1756711299243,0.85088,108420.0,108410.0,0.66833424]
[1756711299443,0.85088,108420.0,108410.0,0.39375]
[1756711299639,0.85088,108420.0,108410.0,0.66833424]
[1756711300546,0.3608,108440.0,108410.0,0.91833424]
[1756711300746,0.85088,108430.0,108420.0,0.63538424]
[1756711300944,1.21168,108440.0,108420.0,0.63538424]
[1756711301149,1.23201784,108440.0,108420.0,0.63538424]
[1756711301839,1.23201784,108440.0,108420.0,0.3608]
[1756711302045,1.50660208,108440.0,108420.0,0.3608]
[1756711302943,1.23201784,108440.0,108420.0,0.3608]
[1756711303145,1.50660208,108440.0,108420.0,0.3608]
[1756711303545,0.38113784,108440.0,108420.0,0.63538424]
[1756711303745,0.02033784,108440.0,108430.0,0.63538424]
[1756711303947,1.21132,108450.0,108430.0,0.63538424]
[1756711304743,1.23166123,108450.0,108430.0,0.63538424]
[1756711305146,1.21132,108450.0,108430.0,0.63538424]
[1756711305347,1.21132,108450.0,108430.0,0.3608]
[1756711305548,1.48590424,108450.0,108430.0,0.63538424]
[1756711306148,1.45590424,108450.0,108430.0,0.63538424]
[1756711306350,1.18132,108450.0,108430.0,0.63538424]
[1756711306545,1.45590424,108450.0,108430.0,0.63538424]
[1756711306747,1.18132,108450.0,108430.0,0.63538424]
[1756711306939,1.45590424,108450.0,108430.0,0.63538424]
[1756711308050,0.27458424,108440.0,108430.0,0.3608]
[1756711309040,1.45590424,108450.0,108430.0,0.3608]
[1756711309243,1.18132,108450.0,108430.0,0.3608]
[1756711309444,0.27458424,108440.0,108430.0,0.3608]
[1756711310250,1.45590424,108450.0,108430.0,0.3608]
[1756711310651,0.3308,108450.0,108430.0,0.63538424]
[1756711310951,0.85092,108440.0,108430.0,0.63538424]
[1756711313051,0.85092,108440.0,108430.0,0.3608]
[1756711313649,0.85092,108440.0,108420.0,0.3814723]
[1756711313650,1.48630424,108440.0,108420.0,0.3814723]
[1756711313856,1.12550424,108440.0,108420.0,0.3814723]
[1756711314055,1.12550424,108440.0,108420.0,0.65605654]
[1756711314960,0.85236,108440.0,108430.0,0.3608]
[1756711315160,0.85236,108440.0,108420.0,0.65605654]
[1756711315661,1.12694424,108440.0,108420.0,0.65605654]
[1756711318365,1.12694424,108440.0,108420.0,0.3814723]
[1756711318567,1.12694424,108440.0,108420.0,0.65605654]
[1756711319060,0.65417576,108460.0,108430.0,0.63538424]
[1756711319269,0.85188,108450.0,108430.0,0.63538424]
[1756711319460,0.85188,108450.0,108430.0,0.39377]
[1756711319461,1.48726424,108450.0,108430.0,0.39377]
[1756711319657,0.27458424,108440.0,108430.0,0.39377]
[1756711319862,1.12646424,108450.0,108430.0,0.39377]
[1756711320061,1.14678094,108450.0,108430.0,0.39377]
[1756711320270,0.29490094,108450.0,108430.0,0.39377]
[1756711320464,0.0203167,108450.0,108430.0,0.66835424]
[1756711320770,1.14626094,108450.0,108430.0,0.39377]
[1756711321069,1.14626094,108450.0,108430.0,0.66835424]
[1756711321362,1.12594424,108450.0,108440.0,0.3608]
[1756711322166,0.27458424,108450.0,108440.0,0.37022518]
[1756711322465,0.85112,108450.0,108440.0,0.64480942]
[1756711322666,0.29337576,108460.0,108440.0,0.64480942]
[1756711322861,0.851,108450.0,108440.0,0.37022518]
[1756711324469,0.851,108450.0,108440.0,0.44410932]
[1756711324863,0.851,108450.0,108440.0,0.08330932]
[1756711325067,1.12558424,108450.0,108430.0,0.66835424]
[1756711325366,0.851,108450.0,108440.0,0.3608]
[1756711325569,0.851,108450.0,108440.0,0.36997042]
[1756711326468,1.12558424,108450.0,108440.0,0.36997042]
[1756711326670,1.40016848,108450.0,108440.0,0.00917042]
[1756711326871,2.01096848,108450.0,108430.0,0.03297]
[1756711327058,2.01096848,108450.0,108430.0,0.04226197]
[1756711327059,0.27458424,108440.0,108430.0,0.04226197]
[1756711327869,0.9042942,108440.0,108430.0,0.03297]
[1756711328066,0.65004739,108440.0,108430.0,0.03297]
[1756711328273,0.92463163,108440.0,108430.0,0.03297]
[1756711328964,0.92463163,108440.0,108430.0,0.04239692]
[1756711329165,0.92463163,108440.0,108430.0,0.03297]
[1756711329474,0.92463163,108440.0,108430.0,0.04215195]
[1756711329671,0.92463163,108440.0,108430.0,0.03297]
[1756711330264,0.65004739,108440.0,108430.0,0.04227535]
[1756711330572,1.1455342,108440.0,108430.0,0.04227535]
[1756711331270,0.87094996,108440.0,108430.0,0.04227535]
[1756711331472,1.1455342,108440.0,108430.0,0.04227535]
[1756711331671,0.87094996,108440.0,108430.0,0.04227535]
[1756711331866,1.1455342,108440.0,108430.0,0.04227535]
[1756711333060,0.87094996,108440.0,108430.0,0.04227535]
[1756711333270,1.1455342,108440.0,108430.0,0.04227535]
[1756711333770,1.7563342,108440.0,108430.0,0.03297]
[1756711333965,1.77658209,108440.0,108430.0,0.03297]
[1756711335167,2.05116633,108440.0,108430.0,0.03297]
[1756711335477,2.10100619,108440.0,108400.0,0.04935169]
[1756711335672,0.63538424,108410.0,108390.0,0.04935169]
[1756711335877,0.85316,108400.0,108390.0,0.41015169]
[1756711336071,0.85316,108400.0,108390.0,0.41938229]
[1756711336575,0.63538424,108420.0,108390.0,0.41938229]
[1756711336872,0.6556134,108420.0,108400.0,0.27458424]
[1756711337178,2.24165256,108430.0,108410.0,0.3608]
[1756711337370,0.85392,108420.0,108410.0,0.3608]
[1756711337874,2.60245256,108430.0,108410.0,0.3608]
[1756711338074,0.85412,108420.0,108410.0,0.3608]
[1756711338276,1.12870424,108420.0,108410.0,0.3608]
[1756711340278,1.40328848,108420.0,108400.0,0.41025169]
[1756711340470,0.27458424,108410.0,108400.0,0.41025169]
[1756711341179,0.27458424,108410.0,108400.0,0.3609]
[1756711342283,0.63538424,108410.0,108400.0,0.0001]
[1756711342970,0.27458424,108410.0,108400.0,0.0001]
[1756711343769,2.32786832,108430.0,108400.0,0.88548424]
[1756711344080,0.85456,108420.0,108410.0,0.63538424]
[1756711344582,0.85456,108420.0,108410.0,0.3608]
[1756711345386,1.96706832,108430.0,108410.0,0.3608]
[1756711345684,0.85468,108420.0,108410.0,0.63538424]
[1756711345885,0.85468,108420.0,108410.0,0.3608]
[1756711346081,1.94872,108430.0,108410.0,0.88538424]
[1756711346286,1.94872,108430.0,108420.0,0.3608]
[1756711346484,2.80404,108430.0,108420.0,0.3608]
[1756711346878,3.07862424,108430.0,108420.0,0.3608]
[1756711347083,2.80404,108430.0,108420.0,0.3608]
[1756711348281,2.80396,108430.0,108420.0,0.3608]
[1756711349380,2.80396,108430.0,108420.0,0.3618]
[1756711350582,3.07854424,108430.0,108420.0,0.3618]
[1756711351084,1.12982424,108430.0,108420.0,0.3618]
[1756711352385,1.12982424,108430.0,108420.0,0.3608]
[1756711352584,1.12982424,108430.0,108410.0,0.41015169]
[1756711352884,0.27458424,108420.0,108410.0,0.41015169]
[1756711353783,1.15996848,108420.0,108410.0,0.04935169]
[1756711353985,1.15996848,108420.0,108400.0,0.41025169]
[1756711354190,1.12982424,108410.0,108400.0,0.41025169]
[1756711354386,1.12982424,108410.0,108400.0,0.04945169]
[1756711354581,1.12982424,108410.0,108400.0,0.41025169]
[1756711355285,1.49062424,108410.0,108400.0,0.04945169]
[1756711356489,1.12982424,108410.0,108400.0,0.04945169]
[1756711356794,0.3608,108420.0,108400.0,0.41025169]
[1756711356989,0.85536,108410.0,108400.0,0.41025169]
[1756711357192,0.65369357,108430.0,108400.0,0.41025169]
[1756711357484,1.12998424,108420.0,108400.0,0.41025169]
[1756711357894,0.27458424,108410.0,108400.0,0.41025169]
[1756711358695,0.27458424,108410.0,108400.0,0.41125169]
[1756711358900,0.88538424,108410.0,108400.0,0.05045169]
[1756711359200,0.88538424,108410.0,108400.0,0.0011]
[1756711359392,0.88538424,108410.0,108400.0,0.0001]
[1756711360295,1.49118424,108410.0,108400.0,0.0001]
[1756711361196,0.63538424,108410.0,108400.0,0.0001]
[1756711361397,1.49138424,108410.0,108400.0,0.0001]
[1756711362897,0.63538424,108410.0,108400.0,0.0001]
[1756711363202,1.49134424,108410.0,108400.0,0.0001]
[1756711366707,1.49062424,108410.0,108400.0,0.0001]
[1756711368209,1.12982424,108410.0,108400.0,0.0001]
[1756711369008,1.49062424,108410.0,108400.0,0.0001]
[1756711372808,0.63538424,108410.0,108400.0,0.0001]
[1756711373010,1.49034424,108410.0,108400.0,0.0001]
[1756711376510,1.50913401,108410.0,108400.0,0.0001]
[1756711376703,1.23454977,108410.0,108400.0,0.0001]
[1756711376906,1.50913401,108410.0,108400.0,0.0001]
[1756711379906,1.52937045,108410.0,108400.0,0.0001]
[1756711380110,1.25478621,108410.0,108400.0,0.0001]
[1756711380309,1.52937045,108410.0,108400.0,0.0001]
[1756711380907,1.52805045,108410.0,108400.0,0.0001]
[1756711383416,1.77805045,108410.0,108400.0,0.0001]
[1756711383609,2.11183588,108410.0,108380.0,0.12431004]
[1756711383817,0.90996848,108390.0,108380.0,0.12431004]
[1756711384017,1.80308391,108390.0,108380.0,0.12431004]
[1756711384322,1.80308391,108390.0,108370.0,0.04935169]
[1756711384618,0.27458424,108380.0,108370.0,0.04935169]
[1756711385322,0.63538424,108380.0,108370.0,0.04935169]
[1756711386023,0.65564022,108380.0,108360.0,0.41015169]
[1756711386219,1.12862424,108370.0,108360.0,0.41015169]
[1756711386718,1.12862424,108370.0,108360.0,0.41920772]
[1756711387224,1.48942424,108370.0,108360.0,0.05840772]
[1756711387625,1.48942424,108370.0,108360.0,0.0844859]
[1756711387922,1.48942424,108370.0,108360.0,0.004]
[1756711388717,1.50787718,108370.0,108360.0,0.004]
[1756711389921,1.50787718,108370.0,108360.0,0.001]
[1756711390522,1.50739718,108370.0,108360.0,0.001]
[1756711390922,1.50735718,108370.0,108360.0,0.001]
[1756711391121,0.65383718,108370.0,108360.0,0.001]
[1756711391326,1.50723718,108370.0,108360.0,0.001]
[1756711391922,0.37925294,108370.0,108360.0,0.001]
[1756711392122,0.37925294,108370.0,108360.0,0.251]
[1756711392319,0.87201294,108370.0,108360.0,0.6118]
[1756711393729,1.14659718,108370.0,108360.0,0.6118]
[1756711394027,0.87201294,108370.0,108360.0,0.6118]
[1756711394329,1.14659718,108370.0,108360.0,0.6118]
[1756711394527,1.14659718,108370.0,108360.0,0.3618]
[1756711395122,1.14659718,108370.0,108360.0,0.001]
[1756711396626,1.14659718,108370.0,108360.0,0.3618]
[1756711396826,1.14659718,108370.0,108360.0,0.001]
[1756711398730,1.50739718,108370.0,108360.0,0.001]
[1756711401431,1.50655718,108370.0,108360.0,0.001]
[1756711402226,0.65383718,108370.0,108360.0,0.001]
[1756711402432,1.50655718,108370.0,108360.0,0.001]
[1756711402638,0.87097294,108370.0,108360.0,0.001]
[1756711402827,0.01845294,108370.0,108360.0,0.3618]
[1756711403026,1.14571718,108370.0,108360.0,0.3618]
[1756711403925,0.29303718,108370.0,108360.0,0.3618]
[1756711404126,1.14599718,108370.0,108360.0,0.3618]
[1756711404831,1.14583718,108370.0,108360.0,0.3618]
[1756711405131,0.29303718,108370.0,108360.0,0.3618]
[1756711405337,0.01845294,108370.0,108360.0,0.6118]
[1756711405634,0.87113294,108370.0,108360.0,0.6118]
[1756711405933,1.14571718,108370.0,108360.0,0.6118]
[1756711406537,1.14551718,108370.0,108360.0,0.6118]
[1756711407438,1.14551718,108370.0,108360.0,0.001]
[1756711408038,1.14551718,108370.0,108360.0,0.3618]
[1756711408337,1.14551718,108370.0,108360.0,0.41115169]
[1756711408539,0.87093294,108370.0,108360.0,0.41115169]
[1756711408738,0.29303718,108370.0,108360.0,0.66115169]
[1756711409039,0.87065294,108370.0,108360.0,0.41115169]
[1756711409938,1.14523718,108370.0,108360.0,0.41115169]
[1756711412639,1.14523718,108370.0,108360.0,0.05035169]
[1756711413936,1.50603718,108370.0,108360.0,0.05035169]
[1756711415341,0.63720383,108370.0,108360.0,0.05035169]
[1756711416037,0.88720383,108370.0,108360.0,0.05035169]
[1756711416239,1.21748145,108370.0,108360.0,0.05035169]
[1756711419843,0.94107762,108370.0,108360.0,0.05035169]
[1756711420039,0.76107762,108370.0,108360.0,0.05035169]
[1756711420236,0.87079762,108370.0,108360.0,0.68573593]
[1756711420435,0.87079762,108370.0,108360.0,0.41115169]
[1756711420436,0.85052,108370.0,108360.0,0.41115169]
[1756711420636,1.12510424,108370.0,108360.0,0.41115169]
[1756711421143,1.14541148,108370.0,108360.0,0.05035169]
[1756711421349,1.14641148,108370.0,108360.0,0.41115169]
[1756711421639,1.12610424,108370.0,108360.0,0.41115169]
[1756711422939,1.12610424,108370.0,108360.0,0.05035169]
[1756711424245,1.12610424,108370.0,108360.0,0.41115169]
[1756711424946,1.12610424,108370.0,108360.0,0.05035169]
[1756711426848,1.12610424,108370.0,108360.0,0.41115169]
[1756711427042,0.85152,108370.0,108360.0,0.3618]
[1756711427243,1.12610424,108370.0,108360.0,0.3618]
[1756711427442,1.12610424,108370.0,108360.0,0.42773972]
[1756711427644,1.12610424,108370.0,108360.0,0.3618]
[1756711427840,1.12610424,108370.0,108360.0,0.42773972]
[1756711428247,1.12610424,108370.0,108360.0,0.3618]
[1756711428644,0.27458424,108370.0,108360.0,0.3618]
[1756711428847,1.12582424,108370.0,108360.0,0.3618]
[1756711433051,1.12582424,108370.0,108360.0,0.001]
[1756711433649,0.85068,108370.0,108360.0,0.3618]
[1756711434144,1.12526424,108370.0,108360.0,0.3618]
[1756711435144,0.01850446,108380.0,108360.0,0.88638424]
[1756711435347,0.03881509,108380.0,108370.0,0.32412194]
[1756711435553,0.87042446,108380.0,108370.0,0.63538424]
[1756711435952,0.87042446,108380.0,108370.0,0.3608]
[1756711436956,0.87042446,108380.0,108370.0,0.42673972]
[1756711437357,0.87042446,108380.0,108370.0,0.3608]
[1756711437555,0.01850446,108380.0,108370.0,0.3608]
[1756711437755,0.01850446,108380.0,108370.0,0.95132396]
[1756711437756,0.87078446,108380.0,108370.0,0.95132396]
[1756711438458,0.87078446,108380.0,108370.0,0.6118]
[1756711438755,0.87078446,108380.0,108370.0,0.88638424]
[1756711438950,0.87078446,108380.0,108370.0,0.6118]
[1756711439155,1.1453687,108380.0,108370.0,0.3628]
[1756711440156,1.1453687,108380.0,108370.0,0.3618]
[1756711440750,0.87078446,108380.0,108370.0,0.3618]
[1756711440948,0.87078446,108380.0,108370.0,0.63638424]
[1756711441150,0.87078446,108380.0,108370.0,0.3618]
[1756711441959,1.1453687,108380.0,108370.0,0.3618]
[1756711443760,1.3953687,108380.0,108370.0,0.3618]
[1756711444456,1.7561687,108380.0,108370.0,0.001]
[1756711444654,2.1261687,108380.0,108370.0,0.001]
[1756711445866,1.2738887,108380.0,108370.0,0.001]
[1756711446065,1.9360487,108380.0,108370.0,0.001]
[1756711446265,1.9360487,108380.0,108360.0,0.3608]
[1756711446266,0.9038887,108380.0,108360.0,0.3608]
[1756711446466,1.12666424,108370.0,108360.0,0.3608]
[1756711447069,0.85208,108370.0,108360.0,0.3608]
[1756711447368,1.12658424,108370.0,108360.0,0.3608]
[1756711448069,1.12658424,108370.0,108360.0,0.3618]
[1756711449670,1.12642424,108370.0,108360.0,0.3618]
[1756711450365,0.85184,108370.0,108360.0,0.3618]
[1756711450562,1.12642424,108370.0,108360.0,0.3618]
[1756711451566,0.85184,108370.0,108360.0,0.3618]
[1756711451768,1.12642424,108370.0,108360.0,0.3618]
[1756711453573,1.12642424,108370.0,108360.0,0.001]
[1756711453574,2.01180848,108370.0,108360.0,0.001]
[1756711453770,2.03236458,108370.0,108360.0,0.001]
[1756711457075,1.75858034,108370.0,108360.0,0.001]
[1756711457473,1.2339961,108370.0,108360.0,0.001]
[1756711457673,0.37930446,108380.0,108360.0,0.3618]
[1756711457874,0.67442657,108380.0,108360.0,0.3618]
[1756711458073,0.2930887,108380.0,108370.0,0.3608]
[1756711458273,1.1461287,108380.0,108360.0,0.3618]
[1756711459173,0.27458424,108370.0,108360.0,0.3618]
[1756711459670,1.12774424,108370.0,108360.0,0.3618]
[1756711459877,0.01850446,108380.0,108360.0,0.88638424]
[1756711460076,0.01850446,108380.0,108370.0,0.3608]
[1756711460272,0.87142446,108380.0,108370.0,0.3608]
[1756711460469,0.01850446,108380.0,108370.0,0.6108]
[1756711460671,0.87142446,108380.0,108370.0,0.6108]
[1756711461071,0.01850446,108380.0,108370.0,0.6108]
[1756711461371,0.87138446,108380.0,108370.0,0.6108]
[1756711461873,0.87142446,108380.0,108370.0,0.88538424]
[1756711462271,0.87142446,108380.0,108370.0,0.95132396]
[1756711462474,0.87130446,108380.0,108370.0,0.95132396]
[1756711462671,0.87130446,108380.0,108370.0,0.88538424]
[1756711462873,0.01850446,108380.0,108370.0,0.88538424]
[1756711463379,0.01850446,108380.0,108370.0,0.88638424]
[1756711464580,0.01850446,108380.0,108370.0,0.6118]
[1756711464784,0.01850446,108380.0,108370.0,0.88738424]
[1756711470479,0.5430887,108380.0,108370.0,0.3628]
[1756711470679,1.53927294,108380.0,108350.0,0.07496187]
[1756711470879,0.54916848,108360.0,108350.0,0.36982215]
[1756711471088,0.27458424,108360.0,108350.0,0.36982215]
[1756711471383,0.3608,108370.0,108350.0,0.36982215]
[1756711471584,1.12658424,108360.0,108350.0,0.36982215]
[1756711471783,1.12658424,108360.0,108350.0,0.37182215]
[1756711472379,1.12658424,108360.0,108350.0,0.01102215]
[1756711473889,1.12658424,108360.0,108350.0,0.01002215]
[1756711476783,1.76196848,108360.0,108350.0,0.01002215]
[1756711476986,2.01196848,108360.0,108350.0,0.001]
[1756711478187,2.0307594,108360.0,108350.0,0.001]
[1756711478587,2.05127686,108360.0,108350.0,0.001]
[1756711480387,1.19927686,108360.0,108350.0,0.001]
[1756711480688,2.05139686,108360.0,108350.0,0.001]
[1756711480885,1.19927686,108360.0,108350.0,0.001]
[1756711481186,2.05135686,108360.0,108350.0,0.001]
[1756711481385,1.50202838,108360.0,108350.0,0.001]
[1756711481689,2.05119686,108360.0,108350.0,0.001]
[1756711482791,2.05123686,108360.0,108350.0,0.001]
[1756711484791,2.0317994,108360.0,108350.0,0.001]
[1756711485885,2.0318394,108360.0,108350.0,0.001]
[1756711486085,0.67472151,108360.0,108350.0,0.001]
[1756711486396,1.14641516,108360.0,108350.0,0.001]
[1756711486595,1.50721516,108360.0,108350.0,0.001]
[1756711486997,1.7817994,108360.0,108350.0,0.001]
[1756711487897,1.14641516,108360.0,108350.0,0.001]
[1756711488293,1.14641516,108360.0,108350.0,0.251]
[1756711488501,1.14641516,108360.0,108350.0,0.6118]
[1756711488502,0.01879092,108360.0,108350.0,0.6118]
[1756711488797,0.87159092,108360.0,108350.0,0.251]
[1756711489000,1.14617516,108360.0,108350.0,0.6118]
[1756711491598,0.87159092,108360.0,108350.0,0.6118]
[1756711491796,1.14617516,108360.0,108350.0,0.6118]
[1756711494205,0.29337516,108360.0,108350.0,0.6118]
[1756711494506,1.14541516,108360.0,108350.0,0.6118]
[1756711497904,0.29337516,108360.0,108350.0,0.6118]
[1756711498113,0.01879092,108360.0,108350.0,0.6118]
[1756711498309,0.49275092,108360.0,108350.0,0.88638424]
[1756711498504,0.49275092,108360.0,108350.0,0.6118]
[1756711498709,0.76733516,108360.0,108350.0,0.3618]
[1756711498901,1.0419194,108360.0,108350.0,0.3618]
[1756711499213,1.4027194,108360.0,108350.0,0.001]
[1756711499410,1.6527194,108360.0,108350.0,0.001]
[1756711499714,1.4027194,108360.0,108350.0,0.001]
[1756711502218,1.6527194,108360.0,108350.0,0.001]
[1756711503118,1.67332417,108360.0,108350.0,0.001]
[1756711508825,2.03412417,108360.0,108350.0,0.001]
[1756711510124,2.03412417,108360.0,108330.0,0.00928716]
[1756711510423,0.54916848,108340.0,108320.0,0.45482738]
[1756711510633,1.40172848,108330.0,108320.0,0.45482738]
[1756711510820,1.40188848,108330.0,108320.0,0.10328953]
[1756711512520,0.85272,108330.0,108320.0,0.10328953]
[1756711512824,1.40188848,108330.0,108320.0,0.08243059]
[1756711513124,1.42190299,108330.0,108310.0,0.3608]
[1756711513327,0.27458424,108320.0,108310.0,0.3608]
[1756711513522,0.27458424,108320.0,108310.0,0.6108]
[1756711513821,0.27458424,108320.0,108310.0,0.3608]
[1756711515122,0.87221451,108330.0,108310.0,1.30855714]
[1756711515323,0.87221451,108330.0,108320.0,0.3608]
[1756711515520,0.02001451,108330.0,108320.0,0.63538424]
[1756711515726,0.01901451,108330.0,108320.0,0.95132396]
[1756711516422,0.01901451,108330.0,108320.0,1.28132396]
[1756711516627,0.02001451,108330.0,108320.0,1.28132396]
[1756711517024,0.01118497,108330.0,108320.0,1.37362596]
[1756711517325,0.01848121,108350.0,108320.0,2.24351719]
[1756711517527,0.70437516,108360.0,108340.0,0.7216]
[1756711517728,0.70437516,108360.0,108350.0,0.3608]
[1756711518431,0.29337516,108360.0,108350.0,0.3608]
[1756711518628,1.14621516,108360.0,108350.0,0.3608]
[1756711519128,1.14605516,108360.0,108350.0,0.3608]
[1756711519725,0.29337516,108360.0,108350.0,0.3608]
[1756711519926,0.01979092,108360.0,108350.0,0.88538424]
[1756711520134,0.01979092,108360.0,108350.0,1.29130441]
[1756711520433,0.01979092,108360.0,108350.0,0.95130441]
[1756711520826,0.01850446,108380.0,108350.0,1.27130441]
[1756711521028,0.01850446,108380.0,108370.0,0.7216]
[1756711521333,0.2930887,108380.0,108370.0,0.7216]
[1756711521734,0.2930887,108380.0,108370.0,0.73072664]
[1756711522636,0.2940887,108380.0,108370.0,0.73072664]
[1756711523225,0.01950446,108380.0,108370.0,0.80332261]
[1756711523438,0.2940887,108380.0,108370.0,0.80332261]
[1756711523635,0.01950446,108380.0,108370.0,0.80332261]
[1756711523842,0.2940887,108380.0,108370.0,0.80332261]
[1756711524038,0.01950446,108380.0,108370.0,0.80332261]
[1756711524343,0.2940887,108380.0,108370.0,0.80332261]
[1756711525340,0.2930887,108380.0,108370.0,0.80332261]
[1756711525541,0.2930887,108380.0,108370.0,0.80432261]